fUST/lending_fUST_20250415
["ID","MTS","AMOUNT","RATE_DAILY","PERIOD"]
[358044515,1744668632351,-231.7357308,0.00026004,2]
[358044517,1744668632361,-217.24550868,0.00026631,2]
[358044519,1744668632371,-207.4,0.00026705,2]
[358044521,1744668632381,-262.73617295,0.0002671,2]
[358044523,1744668632391,-500.0,0.0002671,2]
[358044526,1744668632401,-500.0,0.0002671,2]
[358044528,1744668632411,-500.0,0.0002671,2]
[358044530,1744668632421,-500.0,0.0002671,2]
[358044532,1744668632431,-500.0,0.0002671,2]
[358044533,1744668632440,-500.0,0.0002671,2]
[358044534,1744668632450,-500.0,0.0002671,2]
[358044535,1744668632461,-500.0,0.0002671,2]
[358044536,1744668632472,-343.26241782,0.0002671,2]
[358044537,1744668632481,-500.0,0.0002671,2]
[358044538,1744668632491,-500.0,0.0002671,2]
[358044539,1744668632501,-500.0,0.0002671,2]
[358044540,1744668632511,-500.0,0.0002671,2]
[358044541,1744668632522,-500.0,0.0002671,2]
[358044542,1744668632532,-500.0,0.0002671,2]
[358044543,1744668632542,-500.0,0.0002671,2]
[358044544,1744668632552,-500.0,0.0002671,2]
[358044545,1744668632562,-500.0,0.0002671,2]
[358044546,1744668632572,-500.0,0.0002671,2]
[358044547,1744668632583,-500.0,0.0002671,2]
[358044548,1744668632592,-500.0,0.0002671,2]
[358044549,1744668632602,-500.0,0.0002671,2]
[358044550,1744668632612,-500.0,0.0002671,2]
[358044551,1744668632622,-500.0,0.0002671,2]
[358044552,1744668632632,-500.0,0.0002671,2]
[358044553,1744668632642,-500.0,0.0002671,2]
[358044554,1744668632652,-38592.0011503,0.00026711,2]
[358044555,1744668632662,-7103.32654664,0.00026711,2]
[358044556,1744668632677,-500.0,0.0002672,2]
[358044557,1744668632688,-180.35759764,0.0002672,2]
[358044558,1744668632698,-500.72716319,0.0002672,2]
[358044559,1744668632709,-500.0,0.0002672,2]
[358044560,1744668632720,-47290.79326066,0.00026721,2]
[358044561,1744668632731,-2944.70153534,0.00026721,3]
[358044562,1744668632741,-370000.0,0.00026721,2]
[358044563,1744668632751,-250.0,0.00026731,2]
[358044564,1744668632762,-500.0,0.00026773,2]
[358044565,1744668632772,-644.36583506,0.00026773,2]
[358044566,1744668632782,-504.45620237,0.00026773,2]
[358044567,1744668632793,-500.0,0.00026773,2]
[358044568,1744668632803,-296.0137244,0.00026773,2]
[358044569,1744668632814,-500.0,0.00026773,2]
[358044570,1744668632825,-500.0,0.00026773,2]
[358044571,1744668632835,-3624.93816537,0.00026822,2]
[358044572,1744668632850,-1199.06197842,0.00026822,2]
[358044573,1744668632860,-887.91581833,0.00026822,2]
[358044574,1744668632871,-162.11692124,0.00026829,2]
[358044575,1744668632882,-166.0,0.00026831,3]
[358044576,1744668632892,-166.0,0.00026831,3]
[358044577,1744668632903,-166.0,0.00026831,3]
[358044578,1744668632914,-166.0,0.00026831,3]
[358044579,1744668632924,-172.0,0.00026831,3]
[358044580,1744668632939,-458.52522859,0.00026831,3]
[358044581,1744668632950,-151.0,0.00026831,7]
[358044582,1744668632960,-151.0,0.00026831,7]
[358044583,1744668632971,-151.0,0.00026831,7]
[358044584,1744668632982,-151.0,0.00026831,7]
[358044585,1744668632992,-212.693721,0.00026832,7]
[358044586,1744668633003,-212.693721,0.00026832,7]
[358044587,1744668633014,-151.0,0.00026832,7]
[358044588,1744668633025,-151.0,0.00026832,7]
[358044589,1744668633035,-151.0,0.00026832,7]
[358044590,1744668633045,-151.0,0.00026832,7]
[358044591,1744668633055,-151.562225,0.00026832,7]
[358044592,1744668633065,-288.084349,0.00026832,7]
[358044593,1744668633075,-288.084349,0.00026832,7]
[358044594,1744668633085,-201.203851,0.00026832,7]
[358044595,1744668633095,-6371.518868,0.00026832,2]
[358044596,1744668633106,-6371.518868,0.00026832,2]
[358044597,1744668633116,-355.030762,0.00026832,7]
[358044598,1744668633126,-355.030762,0.00026832,7]
[358044599,1744668633136,-219.76235,0.00026832,7]
[358044600,1744668633146,-219.76235,0.00026832,7]
[358044601,1744668633156,-356.402552,0.00026832,7]
[358044602,1744668633167,-356.402552,0.00026832,7]
[358044603,1744668633177,-151.0,0.00026832,7]
[358044604,1744668633187,-151.0,0.00026832,7]
[358044605,1744668633197,-160.0,0.00026843,2]
[358044606,1744668633207,-500.0,0.00026851,2]
[358044607,1744668633218,-500.0,0.00026873,2]
[358044608,1744668633228,-500.51340594,0.00026873,2]
[358044609,1744668633239,-500.0,0.00026873,2]
[358044610,1744668633249,-500.0,0.00026873,2]
[358044611,1744668633259,-2160.60337355,0.000269,7]
[358044612,1744668633269,-151.0,0.00026902,7]
[358044613,1744668633279,-12547.34863188,0.00026906,2]
[358044614,1744668633291,-160.0,0.00026906,2]
[358044615,1744668633303,-160.0,0.00026906,2]
[358044616,1744668633314,-151.0,0.00026911,7]
[358044617,1744668633325,-4824.00014379,0.00026931,2]
[358044618,1744668633336,-887.91581833,0.00026931,2]
[358044619,1744668633347,-160.0,0.00026941,7]
[358044620,1744668633358,-151.0,0.00026941,7]
[358044621,1744668633368,-151.0,0.00026941,7]
[358044622,1744668633379,-151.573794,0.00026941,7]
[358044623,1744668633390,-202.338991,0.00026941,7]
[358044624,1744668633400,-202.338991,0.00026941,7]
[358044625,1744668633411,-153.889845,0.00026941,7]
[358044626,1744668633422,-295.948674,0.00026941,7]
[358044627,1744668633434,-151.0,0.00026941,7]
[358044628,1744668633445,-151.0,0.00026941,7]
[358044629,1744668633455,-151.0,0.00026941,7]
[358044630,1744668633464,-247.230653,0.00026941,7]
[358044631,1744668633473,-247.230653,0.00026941,7]
[358044632,1744668633483,-1140.993864,0.00026941,7]
[358044633,1744668633492,-151.0,0.00026941,7]
[358044634,1744668633502,-151.0,0.00026941,7]
[358044635,1744668633512,-953.348054,0.00026941,7]
[358044636,1744668633521,-953.348054,0.00026941,7]
[358044637,1744668633531,-151.0,0.00026941,7]
[358044638,1744668633542,-172.593197,0.00026941,7]
[358044639,1744668633553,-170.157118,0.00026941,7]
[358044640,1744668633563,-172.593197,0.00026941,7]
[358044641,1744668633573,-170.157118,0.00026941,7]
[358044642,1744668633583,-212.693721,0.00026941,7]
[358044643,1744668633593,-212.693721,0.00026941,7]
[358044644,1744668633606,-151.0,0.00026941,7]
[358044645,1744668633616,-240.109216,0.00026941,7]
[358044646,1744668633627,-240.109216,0.00026941,7]
[358044647,1744668633637,-151.0,0.00026941,7]
[358044648,1744668633648,-151.0,0.00026941,7]
[358044649,1744668633658,-151.0,0.00026941,7]
[358044650,1744668633668,-288.084349,0.00026941,7]
[358044651,1744668633678,-288.084349,0.00026941,7]
[358044652,1744668633688,-170.316298,0.00026941,7]
[358044653,1744668633699,-151.0,0.00026941,7]
[358044654,1744668633709,-6371.518868,0.00026941,2]
[358044655,1744668633719,-6371.518868,0.00026941,2]
[358044656,1744668633729,-355.030762,0.00026941,7]
[358044657,1744668633740,-355.030762,0.00026941,7]
[358044658,1744668633750,-151.0,0.00026941,7]
[358044659,1744668633760,-219.76235,0.00026941,7]
[358044660,1744668633770,-219.76235,0.00026941,7]
[358044661,1744668633780,-419.9901559,0.00026941,7]
[358044662,1744668633791,-838.51730609,0.00026941,7]
[358044663,1744668633801,-356.402552,0.00026941,7]
[358044664,1744668633811,-303.92426113,0.00026941,7]
[358044665,1744668633825,-52.47829087,0.00026941,7]
[358044666,1744668633836,-151.0,0.00026941,7]
[358044667,1744668633846,-151.0,0.00026941,7]
[358044668,1744668633857,-160.0,0.00026941,7]
[358044669,1744668633867,-160.0,0.00026941,7]
[358044670,1744668633878,-151.0,0.00026941,7]
[358044671,1744668633888,-78.11034118,0.00026941,7]
[358044696,1744668638424,-72.88965882,0.00026941,7]
[358044698,1744668638434,-151.0,0.00026941,7]
[358044700,1744668638445,-151.0,0.00026941,7]
[358044702,1744668638455,-160.0,0.00026941,7]
[358044704,1744668638464,-151.0,0.00026941,7]
[358044706,1744668638474,-21.70355994,0.00026941,7]
[358044709,1744668638487,-129.29644006,0.00026941,7]
[358044711,1744668638497,-151.0,0.00026941,7]
[358044713,1744668638507,-160.0,0.00026941,7]
[358044715,1744668638517,-151.0,0.00026941,7]
[358044717,1744668638527,-160.0,0.00026995,2]
[358044719,1744668638537,-183.66314054,0.00027041,2]
[358044721,1744668638547,-176.69761266,0.00027041,2]
[358044723,1744668638557,-632.0,0.000271,2]
[358044725,1744668638567,-664.0034944,0.00027123,4]
[358044756,1744668638854,-500.0,0.00027125,2]
[358044760,1744668638885,-151.0,0.00027132,7]
[358044762,1744668638895,-358.0,0.00027148,3]
[358044764,1744668638904,-171.81758256,0.00027148,3]
[358044820,1744668639445,-186.18241744,0.00027148,3]
[358044822,1744668639455,-358.0,0.00027148,3]
[358044824,1744668639465,-358.0,0.00027148,3]
[358044826,1744668639475,-358.0,0.00027148,3]
[358044828,1744668639485,-358.0,0.00027148,3]
[358044830,1744668639495,-358.0,0.00027148,3]
[358044832,1744668639504,-151.0,0.00027151,7]
[358044834,1744668639514,-151.0,0.00027151,7]
[358044836,1744668639524,-151.0,0.00027151,7]
[358044838,1744668639533,-151.0,0.00027151,7]
[358044840,1744668639543,-318.21906258,0.00027174,2]
[358044842,1744668639553,-151.0,0.00027223,7]
[358044844,1744668639564,-154.234229,0.00027223,7]
[358044847,1744668639575,-151.0,0.00027223,7]
[358044849,1744668639585,-151.0,0.00027223,7]
[358044851,1744668639595,-172.799572,0.00027263,7]
[358044853,1744668639605,-172.799572,0.00027263,7]
[358044855,1744668639615,-151.0,0.00027263,7]
[358044857,1744668639625,-151.0,0.00027263,7]
[358044859,1744668639635,-151.0,0.00027263,7]
[358044861,1744668639644,-218.997656,0.00027263,7]
[358044863,1744668639654,-218.997656,0.00027263,7]
[358044865,1744668639663,-838.51730609,0.00027276,2]
[358044867,1744668639673,-151.0,0.00027276,7]
[358044869,1744668639683,-151.0,0.00027276,7]
[358044871,1744668639693,-151.0,0.00027276,7]
[358044873,1744668639703,-151.0,0.00027276,7]
[358044875,1744668639712,-1140.993864,0.00027276,7]
[358044877,1744668639722,-151.0,0.00027276,7]
[358044879,1744668639732,-151.0,0.00027276,7]
[358044881,1744668639742,-193.402334,0.00027276,7]
[358044883,1744668639755,-172.593197,0.00027276,7]
[358044885,1744668639764,-170.157118,0.00027276,7]
[358044887,1744668639774,-172.593197,0.00027276,7]
[358044890,1744668639784,-170.157118,0.00027276,7]
[358044891,1744668639793,-240.109216,0.00027276,7]
[358044894,1744668639803,-240.109216,0.00027276,7]
[358044897,1744668639813,-151.380525,0.00027276,7]
[358044899,1744668639823,-151.0,0.00027276,7]
[358044901,1744668639833,-151.0,0.00027276,7]
[358044904,1744668639844,-151.0,0.00027276,7]
[358044906,1744668639853,-151.0,0.00027279,7]
[358044908,1744668639863,-151.0,0.00027279,7]
[358044910,1744668639873,-151.0,0.00027279,7]
[358044912,1744668639883,-151.0,0.00027279,7]
[358044914,1744668639893,-151.0,0.00027279,7]
[358044916,1744668639903,-151.0,0.00027279,7]
[358044918,1744668639913,-2570.839702,0.00027279,7]
[358044920,1744668639923,-2570.839702,0.00027279,7]
[358044922,1744668639938,-4824.00014379,0.00027367,2]
[358044924,1744668639948,-887.91581833,0.00027367,2]
[358044926,1744668639959,-151.0,0.00027377,7]
[358044928,1744668639968,-202.338991,0.00027377,7]
[358044930,1744668639978,-202.338991,0.00027377,7]
[358044932,1744668639988,-247.230653,0.00027377,7]
[358044934,1744668639998,-247.230653,0.00027377,7]
[358044936,1744668640009,-953.348054,0.00027377,7]
[358044938,1744668640019,-953.348054,0.00027377,7]
[358044940,1744668640029,-212.693721,0.00027377,7]
[358044942,1744668640038,-212.693721,0.00027377,7]
[358044944,1744668640048,-151.0,0.00027377,7]
[358044946,1744668640058,-151.0,0.00027377,7]
[358044948,1744668640067,-151.0,0.00027377,7]
[358044950,1744668640077,-151.0,0.00027377,7]
[358044952,1744668640087,-288.084349,0.00027377,7]
[358044954,1744668640097,-288.084349,0.00027377,7]
[358044956,1744668640107,-6371.518868,0.00027377,2]
[358044958,1744668640117,-6371.518868,0.00027377,2]
[358044960,1744668640127,-355.030762,0.00027377,7]
[358044962,1744668640137,-355.030762,0.00027377,7]
[358044964,1744668640147,-219.76235,0.00027377,7]
[358044966,1744668640158,-219.76235,0.00027377,7]
[358044968,1744668640168,-419.9901559,0.00027377,7]
[358044970,1744668640179,-838.51730609,0.00027377,7]
[358044972,1744668640188,-356.402552,0.00027377,7]
[358044974,1744668640198,-356.402552,0.00027377,7]
[358044976,1744668640208,-151.0,0.00027377,7]
[358044978,1744668640217,-178.308556,0.00027377,7]
[358044980,1744668640227,-151.0,0.00027377,7]
[358044982,1744668640237,-151.0,0.00027377,7]
[358044984,1744668640247,-430.89958,0.00027387,2]
[358044986,1744668640257,-430.89958,0.00027387,2]
[358044988,1744668640267,-201.507581,0.00027387,7]
[358044990,1744668640277,-201.507581,0.00027387,7]
[358044993,1744668640288,-151.0,0.00027387,7]
[358044995,1744668640298,-170.157118,0.00027397,7]
[358044997,1744668640308,-170.157118,0.00027397,7]
[358044999,1744668640318,-152.8904732,0.00027397,2]
[358045001,1744668640327,-151.0,0.00027397,2]
[358045003,1744668640337,-151.0,0.00027397,2]
[358045005,1744668640346,-500.0,0.00027397,2]
[358045007,1744668640356,-500.0,0.00027397,2]
[358045008,1744668640365,-500.0,0.00027397,2]
[358045010,1744668640375,-151.0,0.00027397,2]
[358045012,1744668640385,-200.0,0.00027397,2]
[358045014,1744668640396,-500.0,0.00027397,2]
[358045017,1744668640406,-151.0,0.00027397,2]
[358045019,1744668640416,-151.0,0.00027397,2]
[358045021,1744668640425,-151.0,0.00027397,2]
[358045023,1744668640437,-151.0,0.00027397,2]
[358045025,1744668640448,-500.0,0.00027397,2]
[358045027,1744668640458,-151.0,0.00027397,2]
[358045029,1744668640468,-500.0,0.00027397,2]
[358045031,1744668640478,-500.0,0.00027397,2]
[358045033,1744668640488,-200.0,0.00027397,2]
[358045035,1744668640498,-151.0,0.00027397,7]
[358045037,1744668640508,-151.0,0.00027397,7]
[358045039,1744668640518,-500.0,0.00027399,2]
[358045041,1744668640528,-1267.1814,0.000274,2]
[358045043,1744668640538,-425.16272032,0.00027473,5]
[358045045,1744668640547,-500.0,0.00027473,5]
[358045047,1744668640557,-500.0,0.00027473,5]
[358045049,1744668640566,-500.0,0.00027473,5]
[358045051,1744668640576,-500.0,0.00027473,5]
[358045053,1744668640586,-500.0,0.00027473,5]
[358045055,1744668640596,-500.0,0.00027473,5]
[358045057,1744668640606,-151.0,0.00027473,7]
[358045059,1744668640616,-151.0,0.00027473,7]
[358045062,1744668640626,-219.414116,0.00027473,7]
[358045064,1744668640636,-172.593197,0.00027473,7]
[358045066,1744668640646,-172.593197,0.00027473,7]
[358045068,1744668640656,-218.997656,0.00027473,7]
[358045070,1744668640665,-218.997656,0.00027473,7]
[358045073,1744668640685,-240.109216,0.00027473,7]
[358045075,1744668640696,-240.109216,0.00027473,7]
[358045077,1744668640706,-151.0,0.0002748,7]
[358045079,1744668640716,-151.848456,0.0002748,7]
[358045081,1744668640726,-194.290012,0.0002748,7]
[358045083,1744668640736,-2570.839702,0.0002748,7]
[358045085,1744668640746,-2570.839702,0.0002748,7]
[358045087,1744668640756,-6371.518868,0.0002748,2]
[358045089,1744668640766,-6371.518868,0.0002748,2]
[358045091,1744668640776,-219.76235,0.0002748,7]
[358045094,1744668640786,-219.76235,0.0002748,7]
[358045123,1744668641064,-151.0,0.0002748,7]
[358045125,1744668641075,-160.0,0.0002748,7]
[358045127,1744668641085,-165.758738,0.0002748,7]
[358045129,1744668641095,-166.19548,0.0002748,7]
[358045131,1744668641105,-160.0,0.0002748,7]
[358045133,1744668641114,-4824.00014379,0.0002748,2]
[358045135,1744668641124,-887.91581833,0.0002748,2]
[358045137,1744668641133,-151.0,0.0002749,7]
[358045139,1744668641142,-151.0,0.0002749,7]
[358045141,1744668641152,-151.0,0.0002749,7]
[358045143,1744668641162,-153.006761,0.0002749,7]
[358045145,1744668641171,-172.799572,0.0002749,7]
[358045147,1744668641180,-172.799572,0.0002749,7]
[358045149,1744668641190,-154.392814,0.0002749,7]
[358045151,1744668641200,-151.0,0.0002749,7]
[358045153,1744668641209,-151.0,0.0002749,7]
[358045156,1744668641225,-202.338991,0.0002749,7]
[358045158,1744668641234,-202.338991,0.0002749,7]
[358045160,1744668641244,-151.0,0.0002749,7]
[358045162,1744668641254,-151.0,0.0002749,7]
[358045164,1744668641263,-151.0,0.0002749,7]
[358045166,1744668641273,-247.230653,0.0002749,7]
[358045168,1744668641283,-247.230653,0.0002749,7]
[358045170,1744668641292,-1140.993864,0.0002749,7]
[358045172,1744668641302,-151.0,0.0002749,7]
[358045174,1744668641312,-151.0,0.0002749,7]
[358045176,1744668641321,-151.0,0.0002749,7]
[358045178,1744668641331,-953.348054,0.0002749,7]
[358045180,1744668641341,-953.348054,0.0002749,7]
[358045182,1744668641350,-153.626318,0.0002749,7]
[358045184,1744668641360,-151.0,0.0002749,7]
[358045186,1744668641370,-172.593197,0.0002749,7]
[358045188,1744668641379,-170.157118,0.0002749,7]
[358045190,1744668641389,-172.593197,0.0002749,7]
[358045192,1744668641398,-170.157118,0.0002749,7]
[358045194,1744668641407,-151.0,0.0002749,7]
[358045196,1744668641417,-151.0,0.0002749,7]
[358045198,1744668641427,-218.997656,0.0002749,7]
[358045200,1744668641437,-151.0,0.0002749,7]
[358045202,1744668641447,-218.997656,0.0002749,7]
[358045205,1744668641456,-209.90876203,0.0002749,7]
[358045207,1744668641470,-2.78495897,0.0002749,7]
[358045209,1744668641480,-151.0,0.0002749,7]
[358045211,1744668641490,-212.693721,0.0002749,7]
[358045213,1744668641500,-240.109216,0.0002749,7]
[358045215,1744668641509,-240.109216,0.0002749,7]
[358045216,1744668641519,-151.0,0.0002749,7]
[358045217,1744668641528,-151.0,0.0002749,7]
[358045218,1744668641537,-151.0,0.0002749,7]
[358045219,1744668641547,-288.084349,0.0002749,7]
[358045220,1744668641556,-137.74795244,0.0002749,7]
[358045225,1744668641706,-1742.74456168,0.00026612,2]
[358045227,1744668641718,-412.03639997,0.00026612,2]
[358046213,1744669832452,-11256.75508,0.00025371,2]
[358046214,1744669832467,-11176.5649141,0.00025371,2]
[358046215,1744669832477,-300.0,0.00025607,2]
[358046216,1744669832486,-199.99999997,0.00025673,2]
[358046217,1744669832498,-300.00000003,0.00025673,2]
[358046218,1744669832507,-127.34912441,0.00025696,2]
[358046219,1744669832520,-372.65087559,0.00025696,2]
[358046220,1744669832530,-1158.78242534,0.00025888,2]
[358046221,1744669832539,-2751.58195061,0.00026504,2]
[358046222,1744669832550,-207.4,0.00026596,2]
[358046224,1744669832559,-160.0,0.00026601,2]
[358046226,1744669832569,-838.51730609,0.00026601,2]
[358046228,1744669832579,-13507.2004026,0.00026602,2]
[358046229,1744669832588,-2594.48010045,0.00026602,2]
[358046230,1744669832598,-160.0,0.00026602,2]
[358046231,1744669832607,-12547.34863188,0.00026602,2]
[358046234,1744669832619,-160.0,0.00026602,2]
[358046236,1744669832628,-500.0,0.00026611,2]
[358046238,1744669832638,-500.0,0.00026611,2]
[358046240,1744669832647,-226.82501423,0.00026611,2]
[358046242,1744669832657,-95337.34994776,0.00026612,2]
[358046275,1744669838690,-500.0,0.0002661,2]
[358046277,1744669838700,-247.72,0.0002661,2]
[358046501,1744669840849,-252.28,0.0002661,2]
[358046503,1744669840859,-427.02915754,0.0002661,2]
[358046505,1744669840869,-1346.74256156,0.00026612,2]
[358046786,1744669843696,-2029.42724631,0.00026612,2]
[358047084,1744669846635,-1759.87685476,0.00026612,2]
[358049738,1744671032665,-250.0,0.00025507,2]
[358049739,1744671032675,-172.23706545,0.00025507,2]
[358049740,1744671032685,-300.0,0.00025857,2]
[358049741,1744671032695,-1000.0,0.00025857,2]
[358049742,1744671032704,-300.0,0.00025857,2]
[358049743,1744671032714,-288.3149258,0.00025858,2]
[358049744,1744671032765,-16063.98274215,0.00025858,2]
[358049745,1744671032776,-160.0,0.00026063,2]
[358049746,1744671032785,-160.0,0.00026063,2]
[358049747,1744671032795,-12547.34863188,0.00026063,2]
[358049748,1744671032805,-160.0,0.00026063,2]
[358049749,1744671032815,-160.0,0.00026063,2]
[358049750,1744671032825,-838.51730609,0.00026063,2]
[358049751,1744671032835,-500.0,0.00026473,2]
[358049752,1744671032844,-500.0,0.00026473,2]
[358049753,1744671032853,-500.0,0.00026473,2]
[358049754,1744671032863,-174.68285284,0.00026473,2]
[358049755,1744671032872,-151.0,0.00026496,2]
[358049756,1744671032882,-207.4,0.00026496,2]
[358049757,1744671032892,-376.0530652,0.00026499,2]
[358049758,1744671032901,-500.0,0.00026499,2]
[358049759,1744671032911,-500.0,0.00026499,2]
[358049760,1744671032920,-500.0,0.00026499,2]
[358049761,1744671032930,-500.0,0.00026499,2]
[358049762,1744671032939,-500.0,0.00026499,2]
[358049763,1744671032949,-186.90004019,0.00026499,2]
[358049764,1744671032961,-313.09995981,0.00026499,2]
[358049765,1744671032971,-4.70672106,0.00026499,2]
[358049791,1744671038764,-311.16054829,0.00026499,2]
[358049793,1744671038775,-500.0,0.00026499,2]
[358049795,1744671038785,-293.86534378,0.00026499,2]
[358049818,1744671038988,-206.13465622,0.00026499,2]
[358049819,1744671038998,-500.0,0.00026499,2]
[358049820,1744671039007,-33.17094271,0.00026499,2]
[358050029,1744671041070,-466.82905729,0.00026499,2]
[358050031,1744671041080,-500.0,0.00026499,2]
[358050033,1744671041089,-500.0,0.00026499,2]
[358050035,1744671041098,-500.0,0.00026499,2]
[358050037,1744671041107,-500.0,0.00026499,2]
[358050038,1744671041120,-500.0,0.00026499,2]
[358050041,1744671041130,-500.0,0.00026499,2]
[358050043,1744671041140,-34589.45242047,0.000265,2]
[358050045,1744671041150,-15434.19300468,0.00026502,2]
[358052691,1744672231948,-255.7668019,0.00024379,2]
[358052692,1744672231958,-188.12539218,0.00024402,2]
[358052693,1744672231968,-93.32376366,0.0002451,2]
[358052694,1744672232070,-310.83401154,0.0002451,2]
[358052695,1744672232081,-300.0,0.00024818,2]
[358052696,1744672232090,-2027.16598846,0.00024819,2]
[358052697,1744672232102,-522.10161816,0.00024819,2]
[358052704,1744672238136,-643.39806568,0.00024819,2]
[358052705,1744672238150,-8242.2041326,0.00024819,2]
[358052814,1744672240289,-7967.0003854,0.00024819,2]
[358052816,1744672240301,-306.10811016,0.000249,2]
[358052818,1744672240310,-2088.58326105,0.000249,5]
[358052820,1744672240320,-156.0,0.00025,6]
[358052822,1744672240330,-2088.58326089,0.00025624,6]
[358052824,1744672240340,-500.0,0.00025973,2]
[358052826,1744672240350,-500.0,0.00025973,2]
[358052828,1744672240360,-4730.15065602,0.0002599,2]
[358052830,1744672240370,-500.0,0.00025999,2]
[358052832,1744672240380,-423.98525215,0.00025999,2]
[358052834,1744672240389,-193.27354387,0.00025999,2]
[358052836,1744672240400,-500.0,0.00025999,2]
[358052838,1744672240410,-370.20182775,0.00025999,2]
[358052840,1744672240420,-500.0,0.00025999,2]
[358052842,1744672240430,-500.0,0.00025999,2]
[358052844,1744672240440,-500.0,0.00025999,2]
[358052847,1744672240461,-500.0,0.00025999,2]
[358052849,1744672240476,-500.0,0.00025999,2]
[358052851,1744672240488,-500.0,0.00025999,2]
[358052854,1744672240499,-500.0,0.00025999,2]
[358052856,1744672240511,-500.0,0.00025999,2]
[358052858,1744672240524,-500.0,0.00025999,2]
[358052860,1744672240535,-500.0,0.00025999,2]
[358052861,1744672240550,-500.0,0.00025999,2]
[358052863,1744672240560,-500.0,0.00025999,2]
[358052866,1744672240571,-500.0,0.00025999,2]
[358052868,1744672240582,-136.57152387,0.00025999,2]
[358053316,1744672246011,-363.42847613,0.00025999,2]
[358053317,1744672246022,-500.0,0.00025999,2]
[358053318,1744672246032,-500.0,0.00025999,2]
[358053319,1744672246042,-500.0,0.00025999,2]
[358053320,1744672246052,-424.45658759,0.00025999,2]
[358053321,1744672246062,-500.0,0.00025999,2]
[358053322,1744672246071,-500.0,0.00025999,2]
[358053323,1744672246081,-12823.85136528,0.00026,2]
[358053416,1744673432041,-200.0,0.000238,2]
[358053418,1744673432053,-1064.4478036,0.000239,2]
[358053420,1744673432063,-300.0,0.00023999,2]
[358053422,1744673432073,-300.0,0.00023999,2]
[358053424,1744673432083,-7261.42882094,0.00024,7]
[358053467,1744673438236,-1691.84983409,0.00024,7]
[358053473,1744673440390,-5593.88534646,0.00024,7]
[358053474,1744673440401,-838.51730609,0.00024,7]
[358053475,1744673440411,-419.9901559,0.00024,7]
[358053476,1744673440421,-1172.0,0.00024278,2]
[358053477,1744673440431,-383.88664083,0.00024279,2]
[358053478,1744673440441,-772.9176817,0.00024654,2]
[358053479,1744673440452,-489.9019221,0.00024993,2]
[358053480,1744673440466,-2524.84079877,0.00025799,2]
[358053481,1744673440758,-174.68285285,0.000258,2]
[358053482,1744673440769,-500.0,0.00025873,2]
[358053483,1744673440779,-500.0,0.00025873,2]
[358053484,1744673440789,-500.0,0.00025873,2]
[358053485,1744673440798,-207.4,0.00025884,2]
[358053486,1744673440808,-14899.9745665,0.0002589,2]
[358053487,1744673440817,-500.0,0.00025898,2]
[358053488,1744673440827,-500.0,0.00025898,2]
[358053489,1744673440836,-547.16184307,0.00025898,2]
[358053490,1744673440846,-500.0,0.00025898,2]
[358053491,1744673440857,-500.0,0.00025898,2]
[358053492,1744673440867,-500.0,0.00025898,2]
[358053493,1744673440877,-500.0,0.00025898,2]
[358053494,1744673440886,-650.0,0.00025898,2]
[358053495,1744673440896,-500.0,0.00025899,2]
[358053496,1744673440906,-459.14127942,0.00025899,2]
[358053497,1744673440915,-2869.10581288,0.00025899,3]